[Event "Polish Ekstraliga 2024"]
[Site "Walbrzych"]
[Date "2024.10.10"]
[Round "4.4"]
[White "Koziorowicz, Michal"]
[Black "Heberla, Bartlomiej"]
[Result "0-1"]
[ECO "C58"]
[WhiteElo "2289"]
[BlackElo "2501"]
[Annotator "RC"]
[PlyCount "94"]
[EventDate "2024.10.05"]
[EventType "team-tourn"]
[EventCountry "POL"]
[SourceTitle "playchess.com"]
[Source "ChessBase"]
[SourceQuality "1"]
[WhiteTeam "Gorzow Wlkp"]
[BlackTeam "Legnica"]
[TimeControl "40/5400+30:1800+30"]

1. e4 {[%emt 0:00:04]} e5 {[%emt 0:00:10]} 2. Nf3 {[%emt 0:00:09]} Nc6 {[%emt 0:00:03]} 3. Bc4 {[%emt 0:00:18]} Nf6 {[%emt 0:00:05]} 4. Ng5 {[%emt 0:00:24]} d5 {[%emt 0:00:04]} 5. exd5 {[%emt 0:00:08]} Na5 {[%emt 0:00:02]} 6. Bb5+ {[%emt 0:00:11]} Bd7 {[%emt 0:00:02]} 7. Qe2 {[%emt 0:00:37]} Bd6 {[%emt 0:00:04]} 8. Nc3 {[%emt 0:06:14]} O-O {[%emt 0:17:54]} 9. Bxd7 {[%emt 0:02:30]} Qxd7 {[%emt 0:00:12]} 10. a3 {[%emt 0:07:20]} Be7 {[%emt 0:10:18]} 11. b4 {[%emt 0:27:30]} Nxd5 {[%emt 0:00:06]} 12. Qd3 {[%emt 0:00:55]} Bxg5 {[%emt 0:01:25]} 13. h4 {[%emt 0:02:27]} Bh6 {[%emt 0:05:58]} 14. Qxd5 {[%emt 0:01:19]} Qxd5 {[%emt 0:00:10]} 15. Nxd5 {[%emt 0:00:05]} Nc6 {[%emt 0:00:12]} 16. Bb2 {[%emt 0:02:24]} Rad8 {[%emt 0:13:52]} 17. c4 {[%emt 0:01:14]} Rd7 {[%emt 0:00:35]} 18. O-O-O {[%emt 0:02:59]} f6 {[%emt 0:14:48]} 19. Kc2 {[%emt 0:04:53]} Nd8 {[%emt 0:00:48]} 20. d4 {[%emt 0:02:00]} c6 {[%emt 0:01:07]} 21. Ne3 {[%emt 0:00:21]} Bxe3 {[%emt 0:00:06]} 22. fxe3 {[%emt 0:00:03]} exd4 {[%emt 0:00:08]} 23. exd4 {[%emt 0:00:24]} Ne6 {[%emt 0:00:26]} 24. Rd2 {[%emt 0:03:12]} Rfd8 {[%emt 0:08:37]} 25. Rhd1 {[%emt 0:01:35]} h5 {[%emt 0:00:21]} 26. a4 {[%emt 0:01:34]} a6 {[%emt 0:09:57]} 27. a5 {[%emt 0:00:53]} Kf7 {[%emt 0:00:25]} 28. Kc3 {[%emt 0:01:20]} Nc7 {[%emt 0:01:38]} 29. Re2 {[%emt 0:02:24]} Ne6 {[%emt 0:01:25]} 30. Red2 {[%emt 0:00:04]} Nc7 {[%emt 0:00:04]} 31. Re2 {[%emt 0:00:46]} Ne8 {[%emt 0:00:20]} 32. Bc1 {[%emt 0:01:04]} Nd6 {[%emt 0:00:47]} 33. Be3 {[%emt 0:07:42]} Re8 {[%emt 0:01:13]} 34. Rde1 {[%emt 0:00:56]} Rde7 {[%emt 0:07:46]} 35. Kd3 {[%emt 0:00:07]} Re4 {[%emt 0:02:23]} 36. g3 {[%emt 0:00:51]} R8e7 {[%emt 0:04:13]} 37. d5 {[%emt 0:04:29]} cxd5 {[%emt 0:00:40]} 38. cxd5 {[%emt 0:00:10]} R7e5 {[%emt 0:00:17]} 39. Bc5 {[%emt 0:00:38]} Rxd5+ {[%emt 0:00:17]} 40. Kc3 {[%emt 0:00:00]} Rde5 {[%emt 0:00:00]} 41. Re3 {[%emt 0:03:14]} Rxe3+ {[%emt 0:06:23]} 42. Rxe3 {[%emt 0:00:05]} Ne4+ {[%emt 0:04:41]} 43. Kc4 {[%emt 0:01:22]} Nxc5 {[%emt 0:00:53]} 44. Rxe5 {[%emt 0:00:04]} fxe5 {[%emt 0:00:03]} 45. Kxc5 {[%emt 0:00:05]} Ke6 {[%emt 0:00:07]} 46. b5 {[%emt 0:00:04]} axb5 {[%emt 0:00:11]} 47. Kxb5 {[%emt 0:00:24]} e4 {[%emt 0:01:10]} 0-1

[Event "Polish Ekstraliga 2024"]
[Site "Walbrzych"]
[Date "2024.10.10"]
[Round "4.5"]
[White "Bobras, Piotr"]
[Black "Rog, Bartlomiej"]
[Result "1/2-1/2"]
[ECO "C60"]
[WhiteElo "2428"]
[BlackElo "2257"]
[Annotator "RC"]
[PlyCount "68"]
[EventDate "2024.10.05"]
[EventType "team-tourn"]
[EventCountry "POL"]
[SourceTitle "playchess.com"]
[Source "ChessBase"]
[SourceQuality "1"]
[WhiteTeam "Legnica"]
[BlackTeam "Gorzow Wlkp"]
[TimeControl "40/5400+30:1800+30"]

1. e4 {[%emt 0:00:04]} e5 {[%emt 0:00:06]} 2. Nf3 {[%emt 0:00:08]} Nc6 {[%emt 0:00:09]} 3. Bb5 {[%emt 0:00:15]} Nge7 {[%emt 0:00:06]} 4. Nc3 {[%emt 0:01:18]} Ng6 {[%emt 0:00:07]} 5. d4 {[%emt 0:01:10]} Nxd4 {[%emt 0:00:07]} 6. Nxd4 {[%emt 0:00:06]} exd4 {[%emt 0:00:06]} 7. Qxd4 {[%emt 0:00:05]} c6 {[%emt 0:00:07]} 8. Be2 {[%emt 0:00:07]} Qb6 {[%emt 0:00:04]} 9. Qd3 {[%emt 0:09:50]} Be7 {[%emt 0:00:08]} 10. O-O {[%emt 0:01:40]} O-O {[%emt 0:00:08]} 11. a4 {[%emt 0:00:51]} d6 {[%emt 0:00:07]} 12. a5 {[%emt 0:01:03]} Qc7 {[%emt 0:00:05]} 13. Be3 {[%emt 0:11:44]} Kh8 {[%emt 0:02:31]} 14. f4 {[%emt 0:12:19]} f5 {[%emt 0:00:44]} 15. Qd2 {[%emt 0:00:24]} fxe4 {[%emt 0:02:48]} 16. Nxe4 {[%emt 0:00:18]} d5 {[%emt 0:04:40]} 17. Ng3 {[%emt 0:07:31]} Bd6 {[%emt 0:07:29]} 18. Ra4 {[%emt 0:19:51]} Bd7 {[%emt 0:11:41]} 19. Rd4 {[%emt 0:03:31]} Bc5 {[%emt 0:04:43]} 20. f5 {[%emt 0:01:06]} Bxd4 {[%emt 0:00:26]} 21. Bxd4 {[%emt 0:01:53]} Ne5 {[%emt 0:00:25]} 22. Qc3 {[%emt 0:04:59]} Rae8 {[%emt 0:10:58]} 23. Bh5 {[%emt 0:00:21]} Kg8 {[%emt 0:07:33]} 24. Bxe8 {[%emt 0:01:48]} Rxe8 {[%emt 0:00:07]} 25. Nh5 {[%emt 0:07:46]} Ng4 {[%emt 0:11:40]} 26. g3 {[%emt 0:03:22]} Re4 {[%emt 0:09:57]} 27. f6 {[%emt 0:01:19]} gxf6 {[%emt 0:03:31]} 28. h3 {[%emt 0:02:51]} Be8 {[%emt 0:00:13]} 29. Nf4 {[%emt 0:00:17]} c5 {[%emt 0:02:19]} 30. hxg4 {[%emt 0:05:34]} Rxd4 {[%emt 0:00:30]} 31. Ne6 {[%emt 0:00:09]} Qe5 {[%emt 0:00:20]} 32. Nxd4 {[%emt 0:00:19]} cxd4 {[%emt 0:00:06]} 33. Qf3 {[%emt 0:00:27]} Bg6 {[%emt 0:00:08]} 34. Qf2 {[%emt 0:02:29]} Kg7 {[%emt 0:00:58]} 1/2-1/2

[Event "Polish Ekstraliga 2024"]
[Site "Walbrzych"]
[Date "2024.10.10"]
[Round "4.8"]
[White "Wojtaszek, Radoslaw"]
[Black "Navara, David"]
[Result "1/2-1/2"]
[ECO "E06"]
[WhiteElo "2673"]
[BlackElo "2683"]
[Annotator "TA"]
[PlyCount "35"]
[EventDate "2024.10.05"]
[EventType "team-tourn"]
[EventCountry "POL"]
[SourceTitle "playchess.com"]
[Source "ChessBase"]
[SourceQuality "1"]
[WhiteTeam "Bydgoszcz"]
[BlackTeam "Katowice"]
[TimeControl "40/5400+30:1800+30"]

{[%evp 12,35,14,6,12,8,21,13,22,23,20,11,5,24,21,14,15,14,10,18,20,12,16,16,15,14]} 1. d4 {[%emt 0:00:05]} Nf6 {[%emt 0:00:04]} 2. c4 {[%emt 0:00:06]} e6 {[%emt 0:00:03]} 3. Nf3 {[%emt 0:00:10]} d5 {[%emt 0:00:04]} 4. g3 {[%emt 0:00:04]} Be7 {[%emt 0:00:07]} 5. Bg2 {[%emt 0:00:11]} O-O {[%emt 0:00:05]} 6. Nc3 {[%emt 0:00:08]} Nbd7 {[%emt 0:00:04]} 7. Qd3 {[%emt 0:00:30]} b6 {[%emt 0:00:10]} 8. cxd5 {[%emt 0:00:43]} Nxd5 {[%emt 0:00:08]} 9. O-O {[%emt 0:01:04]} Bb7 {[%emt 0:00:04]} 10. Rd1 {[%emt 0:01:12]} Nxc3 {[%emt 0:00:32]} 11. Qxc3 {[%emt 0:01:56]} Rc8 {[%emt 0:02:42]} 12. Be3 {[%emt 0:04:51]} Bd5 {[%emt 0:05:57]} 13. Rac1 {[%emt 0:08:56] Die Stellung ist ausgeglichen.} c5 {[%emt 0:03:04]} 14. dxc5 {[%emt 0:04:21]} Bxc5 {[%emt 0:01:22]} 15. Bxc5 {[%emt 0:07:06]} Rxc5 {[%emt 0:01:43]} 16. Qd4 {[%emt 0:00:24]} Qa8 {[%emt 0:12:52]} 17. Rxc5 {[%emt 0:07:09]} Nxc5 {[%emt 0:06:08]} 18. Ne1 {[%emt 0:02:47] Ein ziemlich ruhiges Remis.   Gewichteter Fehlerwert: Weiß=0.01 (makellos) /Schwarz=0.01 (makellos) .  OK:         	Weiß=6     	Schwarz=3} 1/2-1/2

[Event "Polish Ekstraliga 2024"]
[Site "Walbrzych"]
[Date "2024.10.10"]
[Round "4.9"]
[White "Piorun, Kacper"]
[Black "Teclaf, Pawel"]
[Result "1/2-1/2"]
[ECO "C43"]
[WhiteElo "2581"]
[BlackElo "2552"]
[Annotator "RC"]
[PlyCount "38"]
[EventDate "2024.10.05"]
[EventType "team-tourn"]
[EventCountry "POL"]
[SourceTitle "playchess.com"]
[Source "ChessBase"]
[SourceQuality "1"]
[WhiteTeam "Katowice"]
[BlackTeam "Bydgoszcz"]
[TimeControl "40/5400+30:1800+30"]

1. e4 {[%emt 0:00:02]} e5 {[%emt 0:02:40]} 2. Nf3 {[%emt 0:00:07]} Nf6 {[%emt 0:01:41]} 3. d4 {[%emt 0:00:12]} Nxe4 {[%emt 0:00:05]} 4. Bd3 {[%emt 0:00:07]} d5 {[%emt 0:01:34]} 5. Nxe5 {[%emt 0:00:09]} Nd7 {[%emt 0:00:03]} 6. Nc3 {[%emt 0:00:13]} Nxc3 {[%emt 0:00:45]} 7. bxc3 {[%emt 0:00:18]} Bd6 {[%emt 0:00:03]} 8. O-O {[%emt 0:00:48]} O-O {[%emt 0:00:33]} 9. Re1 {[%emt 0:00:27]} c5 {[%emt 0:06:39]} 10. Qf3 {[%emt 0:00:09]} c4 {[%emt 0:00:05]} 11. Bf5 {[%emt 0:00:05]} Nxe5 {[%emt 0:06:11]} 12. dxe5 {[%emt 0:00:08]} Bc5 {[%emt 0:04:27]} 13. Bxc8 {[%emt 0:02:12]} Rxc8 {[%emt 0:02:09]} 14. Rb1 {[%emt 0:01:22]} b6 {[%emt 0:24:03]} 15. Be3 {[%emt 0:01:52]} Bxe3 {[%emt 0:02:56]} 16. Rxe3 {[%emt 0:02:28]} d4 {[%emt 0:02:34]} 17. cxd4 {[%emt 0:10:49]} Qxd4 {[%emt 0:01:07]} 18. Rd1 {[%emt 0:12:11]} Qb2 {[%emt 0:01:36]} 19. Qe4 {[%emt 0:01:26]} Rcd8 {[%emt 0:06:27]} 1/2-1/2

[Event "Polish Ekstraliga 2024"]
[Site "Walbrzych"]
[Date "2024.10.10"]
[Round "4.10"]
[White "Nasuta, Grzegorz"]
[Black "Klimkowski, Jan"]
[Result "1/2-1/2"]
[ECO "C58"]
[WhiteElo "2545"]
[BlackElo "2477"]
[Annotator "RC"]
[PlyCount "65"]
[EventDate "2024.10.05"]
[EventType "team-tourn"]
[EventCountry "POL"]
[SourceTitle "playchess.com"]
[Source "ChessBase"]
[SourceQuality "1"]
[WhiteTeam "Bydgoszcz"]
[BlackTeam "Katowice"]
[TimeControl "40/5400+30:1800+30"]

1. e4 {[%emt 0:01:51]} e5 {[%emt 0:00:06]} 2. Nf3 {[%emt 0:00:12]} Nc6 {[%emt 0:00:05]} 3. Bc4 {[%emt 0:00:39]} Nf6 {[%emt 0:00:29]} 4. Ng5 {[%emt 0:00:53]} d5 {[%emt 0:00:40]} 5. exd5 {[%emt 0:00:06]} Na5 {[%emt 0:00:17]} 6. Bb5+ {[%emt 0:00:07]} c6 {[%emt 0:00:16]} 7. dxc6 {[%emt 0:00:06]} bxc6 {[%emt 0:00:05]} 8. Qf3 {[%emt 0:00:09]} cxb5 {[%emt 0:04:17]} 9. Qxa8 {[%emt 0:00:15]} Qc7 {[%emt 0:00:36]} 10. Qf3 {[%emt 0:01:54]} Nc6 {[%emt 0:00:32]} 11. c3 {[%emt 0:01:13]} Bg4 {[%emt 0:01:10]} 12. Qg3 {[%emt 0:00:28]} Nd4 {[%emt 0:01:11]} 13. Na3 {[%emt 0:00:14]} Ne2 {[%emt 0:00:46]} 14. Qd3 {[%emt 0:01:22]} Nf4 {[%emt 0:08:35]} 15. Qxb5+ {[%emt 0:00:13]} Bd7 {[%emt 0:00:05]} 16. Qc4 {[%emt 0:00:08]} Qb7 {[%emt 0:00:10]} 17. f3 {[%emt 0:01:05]} Bxa3 {[%emt 0:00:20]} 18. bxa3 {[%emt 0:00:07]} O-O {[%emt 0:01:15]} 19. O-O {[%emt 0:01:03]} Bb5 {[%emt 0:00:21]} 20. Qb3 {[%emt 0:00:28]} Qa6 {[%emt 0:01:00]} 21. d3 {[%emt 0:01:19]} Nxd3 {[%emt 0:01:30]} 22. Nh3 {[%emt 0:08:05]} Bc4 {[%emt 0:15:23]} 23. Qc2 {[%emt 0:00:13]} Nd5 {[%emt 0:00:39]} 24. Nf2 {[%emt 0:27:03]} f5 {[%emt 0:07:00]} 25. Nxd3 {[%emt 0:14:16]} Bxd3 {[%emt 0:00:07]} 26. Qd1 {[%emt 0:03:31]} Qc4 {[%emt 0:17:12]} 27. Rf2 {[%emt 0:03:16]} Re8 {[%emt 0:03:02]} 28. Qb3 {[%emt 0:06:45]} Qc6 {[%emt 0:00:58]} 29. c4 {[%emt 0:00:11]} Bxc4 {[%emt 0:00:49]} 30. Qd1 {[%emt 0:09:12]} Qc5 {[%emt 0:02:35]} 31. Bb2 {[%emt 0:11:23]} Nf4 {[%emt 0:01:09]} 32. Rc1 {[%emt 0:00:05]} Rc8 {[%emt 0:00:03]} 33. Rxc4 {[%emt 0:03:55]} 1/2-1/2

[Event "Polish Ekstraliga 2024"]
[Site "Walbrzych"]
[Date "2024.10.10"]
[Round "4.12"]
[White "Kiolbasa, Oliwia"]
[Black "Socko, Monika"]
[Result "1-0"]
[ECO "E20"]
[WhiteElo "2351"]
[BlackElo "2419"]
[Annotator "RC"]
[PlyCount "71"]
[EventDate "2024.10.05"]
[EventType "team-tourn"]
[EventCountry "POL"]
[SourceTitle "playchess.com"]
[Source "ChessBase"]
[SourceQuality "1"]
[WhiteTeam "Bydgoszcz"]
[BlackTeam "Katowice"]
[TimeControl "40/5400+30:1800+30"]

1. d4 {[%emt 0:00:32]} Nf6 {[%emt 0:00:05]} 2. c4 {[%emt 0:00:07]} e6 {[%emt 0:00:04]} 3. Nc3 {[%emt 0:00:07]} Bb4 {[%emt 0:00:04]} 4. f3 {[%emt 0:00:12]} d5 {[%emt 0:00:20]} 5. a3 {[%emt 0:00:18]} Bxc3+ {[%emt 0:00:18]} 6. bxc3 {[%emt 0:00:08]} O-O {[%emt 0:00:04]} 7. cxd5 {[%emt 0:00:45]} exd5 {[%emt 0:00:16]} 8. e3 {[%emt 0:00:32]} b6 {[%emt 0:00:20]} 9. Bd3 {[%emt 0:03:29]} Ba6 {[%emt 0:00:07]} 10. Ne2 {[%emt 0:01:21]} Bxd3 {[%emt 0:00:07]} 11. Qxd3 {[%emt 0:00:10]} c5 {[%emt 0:00:24]} 12. O-O {[%emt 0:01:48]} Re8 {[%emt 0:00:03]} 13. Ng3 {[%emt 0:01:19]} Nc6 {[%emt 0:00:17]} 14. Bb2 {[%emt 0:02:18]} h5 {[%emt 0:00:17]} 15. Rae1 {[%emt 0:07:30]} h4 {[%emt 0:01:02]} 16. Nf5 {[%emt 0:02:42]} h3 {[%emt 0:00:08]} 17. Ng3 {[%emt 0:00:11]} Qd7 {[%emt 0:11:04]} 18. e4 {[%emt 0:14:28]} hxg2 {[%emt 0:02:05]} 19. Kxg2 {[%emt 0:00:47]} dxe4 {[%emt 0:04:57]} 20. fxe4 {[%emt 0:00:10]} Ne5 {[%emt 0:05:02]} 21. Qd1 {[%emt 0:05:50]} cxd4 {[%emt 0:07:00]} 22. cxd4 Qb5 {[%emt 0:03:57]} 23. Bc3 {[%emt 0:05:58]} Ng6 {[%emt 0:03:47]} 24. d5 {[%emt 0:09:52]} Rac8 {[%emt 0:12:55]} 25. Bxf6 {[%emt 0:07:22]} gxf6 {[%emt 0:00:05]} 26. Nf5 {[%emt 0:05:37]} Qb2+ {[%emt 0:04:56]} 27. Kh1 {[%emt 0:01:16]} Rc3 {[%emt 0:16:44]} 28. Qh5 {[%emt 0:03:49]} Qd2 {[%emt 0:00:54]} 29. Rg1 {[%emt 0:04:02]} Kf8 {[%emt 0:00:04]} 30. Re2 {[%emt 0:06:35]} Qc1 {[%emt 0:07:53]} 31. Qh7 {[%emt 0:02:03]} Rec8 {[%emt 0:09:22]} 32. Rxc1 {[%emt 0:03:24]} Rxc1+ {[%emt 0:00:06]} 33. Kg2 {[%emt 0:00:02]} R8c3 {[%emt 0:08:49]} 34. Qg7+ {[%emt 0:00:20]} Ke8 {[%emt 0:00:04]} 35. Qg8+ {[%emt 0:00:17]} Nf8 {[%emt 0:00:04]} 36. Ng7+ {[%emt 0:00:08]} 1-0

[Event "Polish Ekstraliga 2024"]
[Site "Walbrzych"]
[Date "2024.10.10"]
[Round "4.13"]
[White "Volokitin, Andrei"]
[Black "Bluebaum, Matthias"]
[Result "1/2-1/2"]
[ECO "C81"]
[WhiteElo "2648"]
[BlackElo "2646"]
[Annotator "RC"]
[PlyCount "149"]
[EventDate "2024.10.05"]
[EventType "team-tourn"]
[EventCountry "POL"]
[SourceTitle "playchess.com"]
[Source "ChessBase"]
[SourceQuality "1"]
[WhiteTeam "Pegow"]
[BlackTeam "Raciborz"]
[TimeControl "40/5400+30:1800+30"]

1. e4 {[%emt 0:00:02]} e5 {[%emt 0:00:05]} 2. Nf3 {[%emt 0:00:07]} Nc6 {[%emt 0:00:06]} 3. Bb5 {[%emt 0:00:14]} a6 {[%emt 0:00:07]} 4. Ba4 {[%emt 0:00:04]} Nf6 {[%emt 0:00:04]} 5. O-O {[%emt 0:00:07]} Nxe4 {[%emt 0:00:27]} 6. d4 {[%emt 0:00:10]} b5 {[%emt 0:00:07]} 7. Bb3 {[%emt 0:00:04]} d5 {[%emt 0:00:04]} 8. dxe5 {[%emt 0:00:05]} Be6 {[%emt 0:00:03]} 9. Qe2 {[%emt 0:02:49]} Be7 {[%emt 0:00:38]} 10. Rd1 {[%emt 0:01:07]} O-O {[%emt 0:00:41]} 11. c3 {[%emt 0:00:09]} Qd7 {[%emt 0:08:40]} 12. Nbd2 {[%emt 0:25:57]} Nc5 {[%emt 0:06:51]} 13. Bc2 {[%emt 0:00:53]} f6 {[%emt 0:01:37]} 14. exf6 {[%emt 0:07:07]} Bxf6 {[%emt 0:00:41]} 15. Nb3 {[%emt 0:02:16]} Nxb3 {[%emt 0:03:56]} 16. axb3 {[%emt 0:03:37]} Bf5 {[%emt 0:04:27]} 17. Be3 {[%emt 0:18:39]} Bxc2 {[%emt 0:06:01]} 18. Qxc2 {[%emt 0:00:02]} Ne5 {[%emt 0:01:07]} 19. Nxe5 {[%emt 0:08:14]} Bxe5 {[%emt 0:00:03]} 20. b4 {[%emt 0:00:09]} c6 {[%emt 0:01:32]} 21. Bc5 {[%emt 0:08:36]} Bd6 {[%emt 0:03:30]} 22. Bd4 {[%emt 0:05:16]} Qc7 {[%emt 0:00:17]} 23. g3 {[%emt 0:01:35]} Be5 {[%emt 0:07:06]} 24. Qd3 {[%emt 0:04:17]} Bxd4 {[%emt 0:03:20]} 25. Qxd4 {[%emt 0:00:02]} a5 {[%emt 0:01:59]} 26. Rxa5 {[%emt 0:02:15]} Rxa5 {[%emt 0:00:03]} 27. bxa5 {[%emt 0:00:03]} Qxa5 {[%emt 0:00:05]} 28. Re1 {[%emt 0:00:17]} Qa4 {[%emt 0:05:48]} 29. b4 {[%emt 0:02:31]} Qa2 {[%emt 0:08:14]} 30. Re6 {[%emt 0:07:58]} Qc4 {[%emt 0:00:11]} 31. Qxc4 {[%emt 0:00:19]} dxc4 {[%emt 0:00:39]} 32. Rxc6 {[%emt 0:00:09]} Rf3 {[%emt 0:00:06]} 33. Rc5 {[%emt 0:00:03]} Rxc3 {[%emt 0:00:04]} 34. Rxb5 {[%emt 0:00:04]} Rc1+ {[%emt 0:00:26]} 35. Kg2 {[%emt 0:00:03]} Rb1 {[%emt 0:00:13]} 36. h4 {[%emt 0:01:27]} c3 {[%emt 0:00:51]} 37. Rc5 {[%emt 0:00:06]} Rxb4 {[%emt 0:00:04]} 38. Rxc3 {[%emt 0:00:03]} h5 {[%emt 0:02:31]} 39. Rc5 {[%emt 0:00:21]} g6 {[%emt 0:00:04]} 40. Rc7 {[%emt 0:00:00]} Rb3 {[%emt 0:00:00]} 41. Re7 {[%emt 0:06:36]} Kf8 {[%emt 0:00:32]} 42. Re3 {[%emt 0:01:24]} Rb2 {[%emt 0:00:05]} 43. Kf3 {[%emt 0:00:03]} Kg7 {[%emt 0:00:14]} 44. Re2 {[%emt 0:00:32]} Rb4 {[%emt 0:00:11]} 45. Re4 {[%emt 0:00:06]} Rb2 {[%emt 0:00:14]} 46. Rd4 {[%emt 0:01:17]} Ra2 {[%emt 0:00:20]} 47. Ke3 {[%emt 0:00:06]} Kf6 {[%emt 0:00:24]} 48. f3 {[%emt 0:02:50]} Ra3+ {[%emt 0:00:08]} 49. Kf4 {[%emt 0:00:08]} Ra6 {[%emt 0:00:05]} 50. Rb4 {[%emt 0:01:39]} Rc6 {[%emt 0:00:24]} 51. Ke4 {[%emt 0:00:09]} Re6+ {[%emt 0:00:05]} 52. Kd3 {[%emt 0:00:37]} Re1 {[%emt 0:01:12]} 53. Rf4+ {[%emt 0:00:25]} Kg7 {[%emt 0:00:06]} 54. Re4 {[%emt 0:00:07]} Rg1 {[%emt 0:03:50]} 55. Ke3 {[%emt 0:00:06]} Kf6 {[%emt 0:00:22]} 56. Ra4 {[%emt 0:01:04]} Rb1 {[%emt 0:00:19]} 57. Ke4 {[%emt 0:02:11]} Re1+ {[%emt 0:00:36]} 58. Kf4 {[%emt 0:00:35]} Re6 {[%emt 0:00:11]} 59. g4 {[%emt 0:02:42]} hxg4 {[%emt 0:00:46]} 60. fxg4 {[%emt 0:00:02]} g5+ {[%emt 0:00:24]} 61. hxg5+ {[%emt 0:00:18]} Kg6 {[%emt 0:00:03]} 62. Ra8 {[%emt 0:00:13]} Rb6 {[%emt 0:00:26]} 63. Rg8+ {[%emt 0:00:08]} Kh7 {[%emt 0:00:27]} 64. Rf8 {[%emt 0:03:19]} Kg7 {[%emt 0:00:04]} 65. Rf5 {[%emt 0:02:44]} Kg6 {[%emt 0:00:12]} 66. Rf6+ {[%emt 0:00:33]} Rxf6+ {[%emt 0:00:09]} 67. gxf6 {[%emt 0:00:02]} Kxf6 {[%emt 0:00:06]} 68. g5+ {[%emt 0:00:04]} Kg6 {[%emt 0:00:02]} 69. Kg4 {[%emt 0:00:05]} Kg7 {[%emt 0:00:01]} 70. Kh5 {[%emt 0:00:06]} Kh7 {[%emt 0:00:01]} 71. g6+ {[%emt 0:00:05]} Kg7 {[%emt 0:00:01]} 72. Kg5 {[%emt 0:00:05]} Kg8 {[%emt 0:00:01]} 73. Kh6 {[%emt 0:00:06]} Kh8 {[%emt 0:00:00]} 74. g7+ {[%emt 0:00:06]} Kg8 {[%emt 0:00:01]} 75. Kg6 1/2-1/2

[Event "Polish Ekstraliga 2024"]
[Site "Walbrzych"]
[Date "2024.10.10"]
[Round "4.15"]
[White "Zilka, Stepan"]
[Black "Huschenbeth, Niclas"]
[Result "1/2-1/2"]
[ECO "D27"]
[WhiteElo "2552"]
[BlackElo "2600"]
[Annotator "RC"]
[PlyCount "43"]
[EventDate "2024.10.05"]
[EventType "team-tourn"]
[EventCountry "POL"]
[SourceTitle "playchess.com"]
[Source "ChessBase"]
[SourceQuality "1"]
[WhiteTeam "Pegow"]
[BlackTeam "Raciborz"]
[TimeControl "40/5400+30:1800+30"]

1. d4 {[%emt 0:00:04]} d5 {[%emt 0:02:07]} 2. c4 {[%emt 0:00:09]} dxc4 {[%emt 0:00:05]} 3. Nf3 {[%emt 0:00:06]} Nf6 {[%emt 0:00:06]} 4. e3 {[%emt 0:00:04]} e6 {[%emt 0:00:06]} 5. Bxc4 {[%emt 0:00:06]} c5 {[%emt 0:00:04]} 6. O-O {[%emt 0:00:22]} a6 {[%emt 0:00:05]} 7. Bb3 {[%emt 0:01:25]} b5 {[%emt 0:00:11]} 8. a4 {[%emt 0:00:05]} Bb7 {[%emt 0:00:07]} 9. axb5 {[%emt 0:01:51]} axb5 {[%emt 0:00:08]} 10. Rxa8 {[%emt 0:00:07]} Bxa8 {[%emt 0:00:03]} 11. dxc5 {[%emt 0:00:22]} Nbd7 {[%emt 0:04:38]} 12. c6 {[%emt 0:02:30]} Bxc6 {[%emt 0:00:34]} 13. Nd4 {[%emt 0:00:39]} Qb6 {[%emt 0:07:33]} 14. Nxc6 {[%emt 0:02:52]} Qxc6 {[%emt 0:00:35]} 15. Nc3 {[%emt 0:09:29]} Be7 {[%emt 0:04:48]} 16. Qe2 {[%emt 0:08:01]} Nc5 {[%emt 0:10:54]} 17. Bc2 {[%emt 0:00:15]} b4 {[%emt 0:00:48]} 18. Nb5 {[%emt 0:00:27]} O-O {[%emt 0:22:07]} 19. Nd4 {[%emt 0:00:03]} Qb6 {[%emt 0:01:46]} 20. Qc4 {[%emt 0:05:26]} Qb7 {[%emt 0:05:57]} 21. Bd2 {[%emt 0:10:52]} b3 {[%emt 0:15:11]} 22. Nxb3 {[%emt 0:07:43]} 1/2-1/2

[Event "Polish Ekstraliga 2024"]
[Site "Walbrzych"]
[Date "2024.10.10"]
[Round "4.16"]
[White "Krzyzanowski, Marcin"]
[Black "Moranda, Wojciech"]
[Result "1/2-1/2"]
[ECO "D45"]
[WhiteElo "2509"]
[BlackElo "2559"]
[Annotator "RC"]
[PlyCount "50"]
[EventDate "2024.10.05"]
[EventType "team-tourn"]
[EventCountry "POL"]
[SourceTitle "playchess.com"]
[Source "ChessBase"]
[SourceQuality "1"]
[WhiteTeam "Raciborz"]
[BlackTeam "Pegow"]
[TimeControl "40/5400+30:1800+30"]

1. d4 {[%emt 0:00:03]} Nf6 {[%emt 0:00:20]} 2. c4 {[%emt 0:00:06]} e6 {[%emt 0:00:27]} 3. Nf3 {[%emt 0:00:16]} d5 {[%emt 0:00:40]} 4. Nc3 {[%emt 0:00:25]} c6 {[%emt 0:00:42]} 5. e3 {[%emt 0:00:48]} Nbd7 {[%emt 0:00:38]} 6. Qc2 {[%emt 0:00:40]} b6 {[%emt 0:00:38]} 7. Bd3 {[%emt 0:11:01]} Bb7 {[%emt 0:00:59]} 8. b3 {[%emt 0:08:32]} Rc8 {[%emt 0:04:47]} 9. O-O {[%emt 0:03:22]} Bb4 {[%emt 0:05:04]} 10. Bb2 {[%emt 0:03:57]} c5 {[%emt 0:03:53]} 11. Qe2 {[%emt 0:17:02]} cxd4 {[%emt 0:05:19]} 12. exd4 {[%emt 0:03:10]} O-O {[%emt 0:01:18]} 13. Rac1 {[%emt 0:03:38]} Re8 {[%emt 0:03:28]} 14. Rfd1 {[%emt 0:01:52]} Nf8 {[%emt 0:04:58]} 15. Ne5 {[%emt 0:02:48]} Ng6 {[%emt 0:02:31]} 16. g3 {[%emt 0:08:34]} Ne7 {[%emt 0:15:47]} 17. Qe3 {[%emt 0:04:30]} a6 {[%emt 0:10:51]} 18. Ne2 {[%emt 0:04:10]} dxc4 {[%emt 0:05:56]} 19. bxc4 {[%emt 0:01:02]} Ng6 {[%emt 0:09:26]} 20. Nf4 {[%emt 0:03:56]} Bf8 {[%emt 0:03:56]} 21. Be2 {[%emt 0:05:03]} Qc7 {[%emt 0:04:23]} 22. Nfxg6 {[%emt 0:02:17]} hxg6 {[%emt 0:00:07]} 23. Bf3 {[%emt 0:01:23]} Bxf3 {[%emt 0:02:16]} 24. Qxf3 {[%emt 0:00:08]} Bd6 {[%emt 0:01:10]} 25. Nd3 {[%emt 0:00:54]} Bf8 {[%emt 0:03:08]} 1/2-1/2

[Event "Polish Ekstraliga 2024"]
[Site "Walbrzych"]
[Date "2024.10.10"]
[Round "4.17"]
[White "Plat, Vojtech"]
[Black "Jakubowski, Krzysztof"]
[Result "1/2-1/2"]
[ECO "B10"]
[WhiteElo "2488"]
[BlackElo "2443"]
[Annotator "RC"]
[PlyCount "27"]
[EventDate "2024.10.05"]
[EventType "team-tourn"]
[EventCountry "POL"]
[SourceTitle "playchess.com"]
[Source "ChessBase"]
[SourceQuality "1"]
[WhiteTeam "Pegow"]
[BlackTeam "Raciborz"]
[TimeControl "40/5400+30:1800+30"]

1. e4 {[%emt 0:00:06]} c6 {[%emt 0:00:28]} 2. Nf3 {[%emt 0:00:07]} d5 {[%emt 0:00:08]} 3. d3 {[%emt 0:00:04]} Bg4 {[%emt 0:00:09]} 4. h3 {[%emt 0:00:05]} Bh5 {[%emt 0:00:04]} 5. Nc3 {[%emt 0:00:05]} d4 {[%emt 0:00:28]} 6. g4 {[%emt 0:04:03]} dxc3 {[%emt 0:00:56]} 7. gxh5 {[%emt 0:01:34]} cxb2 {[%emt 0:00:16]} 8. Bxb2 {[%emt 0:00:01]} Nd7 {[%emt 0:00:20]} 9. Qd2 {[%emt 0:04:06]} e6 {[%emt 0:00:55]} 10. Rb1 {[%emt 0:06:02]} Qc7 {[%emt 0:11:08]} 11. h6 {[%emt 0:07:09]} Nxh6 {[%emt 0:01:36]} 12. Rg1 {[%emt 0:00:12]} f6 {[%emt 0:14:08]} 13. h4 {[%emt 0:05:52]} O-O-O {[%emt 0:08:37]} 14. Bh3 {[%emt 0:11:48]} 1/2-1/2